[Event "RUS-ch Men Rapid 2019"]
[Site "Sochi"]
[Date "2019.10.16"]
[Round "9.30"]
[White "Savitskiy, Sergey"]
[Black "Gurvich, Vitaly"]
[Result "0-1"]
[ECO "B15"]
[WhiteElo "2407"]
[BlackElo "2278"]
[Annotator "NA"]
[PlyCount "102"]
[EventDate "2019.10.15"]
[EventType "swiss"]
[EventCountry "RUS"]
[SourceTitle "playchess.com"]
[Source "ChessBase"]
[SourceQuality "1"]
[TimeControl "900+10"]

1. e4 {[%emt 0:00:00]} c6 {[%emt 0:00:00]} 2. d4 {[%emt 0:00:00]} d5 {[%emt 0:00:00]} 3. Nc3 {[%emt 0:00:00]} dxe4 {[%emt 0:00:00]} 4. Nxe4 {[%emt 0:00:00]} Nf6 {[%emt 0:00:00]} 5. Nxf6+ {[%emt 0:00:01]} exf6 {[%emt 0:00:00]} 6. c3 {[%emt 0:00:02]} Bd6 {[%emt 0:00:00]} 7. Bd3 {[%emt 0:00:01]} O-O {[%emt 0:00:02]} 8. Qc2 {[%emt 0:00:01]} Re8+ {[%emt 0:00:01]} 9. Ne2 {[%emt 0:00:01]} Kh8 {[%emt 0:00:01]} 10. Be3 {[%emt 0:00:08]} Nd7 {[%emt 0:00:02]} 11. O-O-O {[%emt 0:00:17]} Nf8 {[%emt 0:00:01]} 12. h4 {[%emt 0:00:07]} Be6 {[%emt 0:00:03]} 13. Kb1 {[%emt 0:01:11]} b5 {[%emt 0:00:05]} 14. h5 {[%emt 0:00:14]} Bd5 {[%emt 0:00:16]} 15. Nf4 {[%emt 0:00:54]} Bxf4 {[%emt 0:00:26]} 16. Bxf4 {[%emt 0:00:01]} Bxg2 {[%emt 0:00:01]} 17. Rh2 {[%emt 0:00:09]} Bf3 {[%emt 0:00:08]} 18. Rg1 {[%emt 0:00:04]} Qd5 {[%emt 0:00:16]} 19. Rh4 {[%emt 0:02:53]} Bxh5 {[%emt 0:01:51]} 20. c4 {[%emt 0:05:21]} bxc4 {[%emt 0:06:47]} 21. Bxc4 {[%emt 0:03:09]} Qf3 {[%emt 0:00:01]} 22. Rg3 {[%emt 0:00:01]} Qd1+ {[%emt 0:00:03]} 23. Qxd1 {[%emt 0:00:01]} Bxd1 {[%emt 0:00:01]} 24. Be3 {[%emt 0:00:22]} Ba4 {[%emt 0:01:10]} 25. Bxf7 {[%emt 0:00:55]} Re7 {[%emt 0:00:07]} 26. Bc4 {[%emt 0:00:12]} Bb5 {[%emt 0:00:07]} 27. Bb3 {[%emt 0:00:01]} g5 {[%emt 0:00:53]} 28. Rh6 {[%emt 0:00:43]} Bd3+ {[%emt 0:01:40]} 29. Kc1 {[%emt 0:00:00]} Ng6 {[%emt 0:00:14]} 30. Kd2 {[%emt 0:00:12]} Be4 {[%emt 0:00:21]} 31. f3 {[%emt 0:00:59]} Bf5 {[%emt 0:00:09]} 32. d5 {[%emt 0:02:01]} Kg7 {[%emt 0:00:31]} 33. Rh2 {[%emt 0:00:01]} cxd5 {[%emt 0:00:13]} 34. Bc5 {[%emt 0:00:06]} Rd7 {[%emt 0:00:13]} 35. Bd4 {[%emt 0:00:01]} h6 {[%emt 0:00:26]} 36. Rg1 {[%emt 0:00:22]} Rh8 {[%emt 0:00:23]} 37. Bd1 {[%emt 0:00:13]} Rc7 {[%emt 0:00:57]} 38. b3 {[%emt 0:00:07]} Nf4 {[%emt 0:00:33]} 39. Rh4 {[%emt 0:00:25]} Ne6 {[%emt 0:00:18]} 40. Bf2 {[%emt 0:00:07]} d4 {[%emt 0:01:15]} 41. Rh2 {[%emt 0:00:14]} Rhc8 {[%emt 0:00:10]} 42. Rhh1 {[%emt 0:00:12]} Kg6 {[%emt 0:00:30]} 43. b4 {[%emt 0:00:05]} Rc2+ {[%emt 0:00:14]} 44. Bxc2 {[%emt 0:00:05]} Rxc2+ {[%emt 0:00:01]} 45. Ke1 {[%emt 0:00:02]} d3 {[%emt 0:00:00]} 46. Bxa7 {[%emt 0:00:17]} Rxa2 {[%emt 0:00:08]} 47. Bb6 {[%emt 0:00:11]} Nf4 {[%emt 0:00:31]} 48. Kd1 {[%emt 0:00:12]} Be6 {[%emt 0:00:14]} 49. Be3 {[%emt 0:00:14]} Bb3+ {[%emt 0:00:31]} 50. Kc1 {[%emt 0:00:08]} Ne2+ {[%emt 0:00:01]} 51. Kb1 {[%emt 0:00:03]} Nc3+ {[%emt 0:00:02]} 0-1

[Event "RUS-ch Men Rapid 2019"]
[Site "Sochi"]
[Date "2019.10.16"]
[Round "9.31"]
[White "Ivlev, Aleksey"]
[Black "Dashko, Andrey"]
[Result "1-0"]
[ECO "A52"]
[WhiteElo "2292"]
[BlackElo "2225"]
[Annotator "NA"]
[PlyCount "85"]
[EventDate "2019.10.15"]
[EventType "swiss"]
[EventCountry "RUS"]
[SourceTitle "playchess.com"]
[Source "ChessBase"]
[SourceQuality "1"]
[TimeControl "900+10"]

1. d4 {[%emt 0:00:00]} Nf6 {[%emt 0:00:00]} 2. c4 {[%emt 0:00:00]} e5 {[%emt 0:00:00]} 3. dxe5 {[%emt 0:00:00]} Ng4 {[%emt 0:00:00]} 4. e3 {[%emt 0:00:00]} Nxe5 {[%emt 0:00:00]} 5. Nh3 {[%emt 0:00:00]} Nbc6 {[%emt 0:00:03]} 6. Nc3 {[%emt 0:00:03]} d6 {[%emt 0:00:02]} 7. Nf4 {[%emt 0:00:02]} g6 {[%emt 0:00:03]} 8. Be2 {[%emt 0:00:04]} Bg7 {[%emt 0:00:01]} 9. O-O {[%emt 0:00:02]} O-O {[%emt 0:00:01]} 10. Bd2 {[%emt 0:00:34]} Nd7 {[%emt 0:00:35]} 11. Rc1 {[%emt 0:00:06]} Nc5 {[%emt 0:00:02]} 12. Nfd5 {[%emt 0:00:28]} a5 {[%emt 0:00:11]} 13. Nb5 {[%emt 0:00:34]} Ne6 {[%emt 0:01:28]} 14. Bc3 {[%emt 0:00:01]} Nb4 {[%emt 0:00:22]} 15. Bxg7 {[%emt 0:00:26]} Kxg7 {[%emt 0:00:01]} 16. a3 {[%emt 0:00:05]} Nxd5 {[%emt 0:00:18]} 17. cxd5 {[%emt 0:00:03]} Nc5 {[%emt 0:00:01]} 18. b4 {[%emt 0:00:33]} axb4 {[%emt 0:00:02]} 19. axb4 {[%emt 0:00:01]} Na6 {[%emt 0:00:01]} 20. Qd4+ {[%emt 0:00:39]} Kg8 {[%emt 0:01:34]} 21. Rc3 {[%emt 0:00:07]} Bd7 {[%emt 0:00:04]} 22. Rfc1 {[%emt 0:00:03]} Rc8 {[%emt 0:00:44]} 23. h3 {[%emt 0:00:16]} h5 {[%emt 0:01:53]} 24. Na7 {[%emt 0:00:23]} Rb8 {[%emt 0:01:25]} 25. Bxa6 {[%emt 0:00:02]} bxa6 {[%emt 0:00:01]} 26. Rxc7 {[%emt 0:00:04]} Bb5 {[%emt 0:00:01]} 27. Rc8 {[%emt 0:02:12]} Qg5 28. Rxf8+ {[%emt 0:01:10]} Rxf8 {[%emt 0:00:09]} 29. Nxb5 {[%emt 0:00:48]} axb5 {[%emt 0:00:01]} 30. Rc6 {[%emt 0:00:02]} Qe7 {[%emt 0:00:10]} 31. Rb6 {[%emt 0:00:04]} Rc8 {[%emt 0:00:22]} 32. Rxb5 {[%emt 0:00:17]} Rc1+ {[%emt 0:00:24]} 33. Kh2 {[%emt 0:00:04]} Qc7 {[%emt 0:00:06]} 34. Ra5 {[%emt 0:00:42]} Qd8 {[%emt 0:00:01]} 35. Ra7 {[%emt 0:00:38]} Rc2 {[%emt 0:00:16]} 36. Qf4 {[%emt 0:00:11]} Qe8 {[%emt 0:00:16]} 37. Ra6 {[%emt 0:00:39]} Qb8 {[%emt 0:00:36]} 38. Rxd6 {[%emt 0:00:32]} Qc7 {[%emt 0:00:16]} 39. Rf6 {[%emt 0:01:12]} Qd7 {[%emt 0:00:17]} 40. Qe5 {[%emt 0:01:33]} Rd2 {[%emt 0:00:25]} 41. Rd6 {[%emt 0:00:08]} Qc8 {[%emt 0:00:15]} 42. Qf6 {[%emt 0:00:37]} Qc7 {[%emt 0:00:05]} 43. f4 {[%emt 0:02:15]} 1-0

[Event "RUS-ch Men Rapid 2019"]
[Site "Sochi"]
[Date "2019.10.16"]
[Round "9.32"]
[White "Volovich, Vasily"]
[Black "Truskavetsky, Alexandr"]
[Result "0-1"]
[ECO "C41"]
[WhiteElo "2120"]
[BlackElo "2370"]
[Annotator "NA"]
[PlyCount "76"]
[EventDate "2019.10.15"]
[EventType "swiss"]
[EventCountry "RUS"]
[SourceTitle "playchess.com"]
[Source "ChessBase"]
[SourceQuality "1"]
[TimeControl "900+10"]

1. e4 d6 2. d4 Nf6 3. Nc3 e5 4. Nf3 Nbd7 5. Bc4 Be7 6. O-O O-O 7. Re1 c6 8. a4 a5 9. h3 exd4 10. Qxd4 Nc5 11. Bf4 Be6 12. Rad1 Qb6 13. Bxe6 fxe6 14. Bxd6 Bxd6 15. Qxd6 Rad8 16. Qe5 Nfd7 17. Qd4 Qxb2 18. Ne5 Qb4 19. Qxb4 axb4 20. Nxd7 Rxd7 21. Rxd7 Nxd7 22. Na2 c5 23. Rd1 Ne5 24. Rd6 Ra8 25. Rxe6 Nc6 26. Nc1 Rxa4 27. Nd3 c4 28. Nc5 Ra1+ 29. Kh2 Na5 30. Re7 b3 31. cxb3 c3 32. Nd3 c2 33. b4 Nc6 34. Rc7 Rd1 35. b5 Rxd3 36. bxc6 c1=Q 37. Rc8+ Kf7 38. cxb7 Qf4+ 0-1

[Event "RUS-ch Men Rapid 2019"]
[Site "Sochi"]
[Date "2019.10.16"]
[Round "10.1"]
[White "Kokarev, Dmitry"]
[Black "Oganian, Miran"]
[Result "1/2-1/2"]
[ECO "B32"]
[WhiteElo "2593"]
[BlackElo "2436"]
[Annotator "ChessBase"]
[PlyCount "71"]
[EventDate "2019.10.15"]
[EventType "swiss"]
[EventCountry "RUS"]
[SourceTitle "playchess.com"]
[Source "ChessBase"]
[SourceQuality "1"]
[TimeControl "900+10"]

1. e4 {[%emt 0:00:00]} c5 {[%emt 0:00:00]} 2. Nf3 {[%emt 0:00:00]} Nc6 {[%emt 0:00:00]} 3. d4 {[%emt 0:00:00]} cxd4 {[%emt 0:00:00]} 4. Nxd4 {[%emt 0:00:02]} e5 {[%emt 0:00:00]} 5. Nb5 {[%emt 0:00:02]} a6 {[%emt 0:00:00]} 6. Nd6+ {[%emt 0:00:03]} Bxd6 {[%emt 0:00:00]} 7. Qxd6 {[%emt 0:00:03]} Qe7 {[%emt 0:00:00]} 8. Qd1 {[%emt 0:00:11]} Nf6 {[%emt 0:00:01]} 9. Nc3 {[%emt 0:00:03]} d6 {[%emt 0:00:02]} 10. Bg5 {[%emt 0:00:19]} Be6 {[%emt 0:00:01]} 11. Nd5 {[%emt 0:00:09]} Bxd5 {[%emt 0:00:01]} 12. exd5 {[%emt 0:00:02]} Nb8 {[%emt 0:00:02]} 13. Be2 {[%emt 0:00:15]} O-O {[%emt 0:00:32]} 14. O-O {[%emt 0:00:04]} Nbd7 {[%emt 0:00:12]} 15. c4 {[%emt 0:00:05]} a5 {[%emt 0:00:06]} 16. b3 {[%emt 0:00:07]} h6 {[%emt 0:00:03]} 17. Be3 {[%emt 0:00:02]} Nh7 {[%emt 0:00:09]} 18. f3 {[%emt 0:00:26]} f5 {[%emt 0:00:06]} 19. Bd3 {[%emt 0:00:06]} b6 {[%emt 0:00:35]} 20. Qd2 {[%emt 0:00:20]} Nc5 {[%emt 0:00:22]} 21. Bc2 {[%emt 0:00:03]} Ng5 {[%emt 0:00:59]} 22. Rfe1 {[%emt 0:01:32]} Qf6 {[%emt 0:01:04]} 23. Rab1 {[%emt 0:00:44]} Rae8 {[%emt 0:01:14]} 24. a3 {[%emt 0:00:18]} f4 {[%emt 0:00:20]} 25. Bf2 {[%emt 0:01:09]} e4 {[%emt 0:00:30]} 26. Bxc5 {[%emt 0:00:03]} bxc5 {[%emt 0:01:17]} 27. Bxe4 {[%emt 0:00:06]} Nxe4 {[%emt 0:02:38]} 28. Rxe4 {[%emt 0:00:02]} Rxe4 {[%emt 0:00:11]} 29. fxe4 {[%emt 0:00:02]} Qe5 {[%emt 0:00:57]} 30. Qd3 {[%emt 0:01:07]} Re8 {[%emt 0:00:16]} 31. Re1 {[%emt 0:00:10]} Qb2 {[%emt 0:00:07]} 32. Rf1 {[%emt 0:01:48]} Qe5 {[%emt 0:00:37]} 33. Qd2 {[%emt 0:01:20]} g5 {[%emt 0:00:58]} 34. Qxa5 {[%emt 0:00:27]} Qd4+ {[%emt 0:00:15]} 35. Kh1 {[%emt 0:00:06]} Qd3 {[%emt 0:00:12]} 36. Qe1 {[%emt 0:01:03]} 1/2-1/2

[Event "RUS-ch Men Rapid 2019"]
[Site "Sochi"]
[Date "2019.10.16"]
[Round "10.3"]
[White "Moiseenko, Vadim"]
[Black "Rozum, Ivan"]
[Result "0-1"]
[ECO "A00"]
[WhiteElo "2532"]
[BlackElo "2599"]
[Annotator "ChessBase"]
[PlyCount "104"]
[EventDate "2019.10.15"]
[EventType "swiss"]
[EventCountry "RUS"]
[SourceTitle "playchess.com"]
[Source "ChessBase"]
[SourceQuality "1"]
[TimeControl "900+10"]

1. Nc3 {[%emt 0:00:00]} d5 {[%emt 0:00:08]} 2. d4 {[%emt 0:00:00]} Nf6 {[%emt 0:00:15]} 3. Bf4 {[%emt 0:00:00]} a6 {[%emt 0:00:11]} 4. e3 {[%emt 0:00:00]} e6 {[%emt 0:00:02]} 5. g4 {[%emt 0:00:36]} c5 {[%emt 0:01:44]} 6. g5 {[%emt 0:00:03]} Nfd7 {[%emt 0:00:15]} 7. Nf3 {[%emt 0:00:23]} Nc6 {[%emt 0:00:04]} 8. h4 {[%emt 0:00:13]} cxd4 {[%emt 0:02:35]} 9. exd4 {[%emt 0:00:01]} Nb6 {[%emt 0:00:06]} 10. Bd3 {[%emt 0:00:57]} Bd6 {[%emt 0:00:09]} 11. Ne2 {[%emt 0:00:07]} Qc7 {[%emt 0:00:54]} 12. Bxd6 {[%emt 0:00:18]} Qxd6 {[%emt 0:00:01]} 13. c3 {[%emt 0:00:02]} Bd7 {[%emt 0:00:04]} 14. Qd2 {[%emt 0:00:08]} O-O-O {[%emt 0:00:06]} 15. Qf4 {[%emt 0:00:13]} Kc7 {[%emt 0:00:39]} 16. Kd2 {[%emt 0:00:33]} Rdf8 {[%emt 0:00:03]} 17. Rag1 {[%emt 0:00:21]} Qxf4+ {[%emt 0:01:02]} 18. Nxf4 {[%emt 0:00:01]} f6 {[%emt 0:00:03]} 19. g6 {[%emt 0:03:49]} h6 {[%emt 0:01:10]} 20. Nh5 {[%emt 0:00:03]} Rhg8 {[%emt 0:00:03]} 21. Bf1 {[%emt 0:00:47]} e5 {[%emt 0:00:24]} 22. b3 {[%emt 0:00:02]} Bf5 {[%emt 0:00:54]} 23. Bh3 {[%emt 0:01:24]} Be4 {[%emt 0:00:01]} 24. Rg3 {[%emt 0:00:00]} f5 {[%emt 0:00:23]} 25. Ke2 {[%emt 0:01:48]} exd4 {[%emt 0:00:02]} 26. cxd4 {[%emt 0:00:01]} Kd6 {[%emt 0:01:45]} 27. Rd1 {[%emt 0:00:39]} f4 {[%emt 0:00:46]} 28. Rgg1 {[%emt 0:01:54]} Re8 {[%emt 0:00:13]} 29. Bg4 {[%emt 0:00:45]} Bxg6+ {[%emt 0:01:56]} 30. Kf1 {[%emt 0:00:01]} Be4 {[%emt 0:00:09]} 31. Ne1 {[%emt 0:00:33]} Ref8 {[%emt 0:00:04]} 32. f3 {[%emt 0:00:10]} Bh7 {[%emt 0:01:08]} 33. Ng2 {[%emt 0:00:03]} g5 {[%emt 0:00:01]} 34. Kf2 {[%emt 0:00:25]} Bg6 {[%emt 0:00:18]} 35. Rge1 {[%emt 0:00:11]} Bf5 {[%emt 0:00:24]} 36. Bxf5 {[%emt 0:00:45]} Rxf5 {[%emt 0:00:01]} 37. hxg5 {[%emt 0:00:02]} hxg5 {[%emt 0:00:06]} 38. Rg1 {[%emt 0:00:42]} Rh8 {[%emt 0:00:12]} 39. Rh1 {[%emt 0:00:04]} Rf7 {[%emt 0:00:10]} 40. Rh3 {[%emt 0:00:34]} Rfh7 {[%emt 0:00:01]} 41. Rdh1 {[%emt 0:00:04]} Nxd4 {[%emt 0:00:32]} 42. Nhxf4 {[%emt 0:00:03]} Rxh3 {[%emt 0:00:02]} 43. Nxh3 {[%emt 0:00:01]} Nd7 {[%emt 0:00:20]} 44. Ne1 {[%emt 0:01:10]} Ne5 {[%emt 0:00:04]} 45. Kg2 {[%emt 0:00:01]} Ne6 {[%emt 0:00:39]} 46. Rg1 {[%emt 0:00:36]} Nf4+ {[%emt 0:00:26]} 47. Nxf4 {[%emt 0:00:03]} gxf4 {[%emt 0:00:00]} 48. Kf2 {[%emt 0:00:27]} d4 {[%emt 0:00:04]} 49. Ng2 {[%emt 0:00:23]} Rh3 {[%emt 0:00:07]} 50. Ne1 {[%emt 0:01:18]} d3 {[%emt 0:00:01]} 51. Ng2 {[%emt 0:00:15]} Rxf3+ {[%emt 0:00:08]} 52. Ke1 {[%emt 0:00:01]} Rg3 {[%emt 0:00:07]} 0-1

[Event "RUS-ch Men Rapid 2019"]
[Site "Sochi"]
[Date "2019.10.16"]
[Round "10.4"]
[White "Musalov, Ruslan"]
[Black "Pridorozhni, Aleksei"]
[Result "0-1"]
[ECO "D05"]
[WhiteElo "2348"]
[BlackElo "2599"]
[Annotator "ChessBase"]
[PlyCount "72"]
[EventDate "2019.10.15"]
[EventType "swiss"]
[EventCountry "RUS"]
[SourceTitle "playchess.com"]
[Source "ChessBase"]
[SourceQuality "1"]
[TimeControl "900+10"]

1. d4 {[%emt 0:00:00]} d5 {[%emt 0:00:00]} 2. Nf3 {[%emt 0:00:00]} e6 {[%emt 0:00:00]} 3. e3 {[%emt 0:00:01]} Nf6 {[%emt 0:00:00]} 4. Bd3 {[%emt 0:00:34]} c5 {[%emt 0:00:15]} 5. c3 {[%emt 0:00:14]} Bd6 {[%emt 0:00:05]} 6. Nbd2 {[%emt 0:00:01]} O-O {[%emt 0:00:05]} 7. O-O {[%emt 0:00:02]} Nc6 {[%emt 0:00:18]} 8. dxc5 {[%emt 0:00:25]} Bxc5 {[%emt 0:00:02]} 9. e4 {[%emt 0:00:01]} e5 {[%emt 0:00:28]} 10. b4 {[%emt 0:00:40]} Bb6 {[%emt 0:00:05]} 11. Qe2 {[%emt 0:05:13]} Bg4 {[%emt 0:02:21]} 12. b5 {[%emt 0:04:08]} Ne7 {[%emt 0:00:13]} 13. h3 {[%emt 0:00:31]} Nh5 {[%emt 0:00:59]} 14. Rd1 {[%emt 0:02:49]} Nf4 {[%emt 0:00:34]} 15. Qf1 {[%emt 0:00:02]} Bh5 {[%emt 0:00:18]} 16. g4 {[%emt 0:01:04]} Bg6 {[%emt 0:00:10]} 17. Nxe5 {[%emt 0:00:21]} Qc7 {[%emt 0:00:30]} 18. Nxg6 {[%emt 0:01:35]} Nexg6 {[%emt 0:00:02]} 19. Nf3 {[%emt 0:00:11]} Nxd3 {[%emt 0:00:27]} 20. Qxd3 {[%emt 0:00:02]} dxe4 {[%emt 0:00:50]} 21. Qxe4 {[%emt 0:00:02]} Rfe8 {[%emt 0:00:07]} 22. Qf5 {[%emt 0:00:02]} Qg3+ {[%emt 0:00:04]} 23. Kh1 {[%emt 0:00:02]} Qxh3+ {[%emt 0:00:03]} 24. Kg1 {[%emt 0:00:31]} Qg3+ {[%emt 0:00:27]} 25. Kh1 {[%emt 0:00:00]} Bxf2 {[%emt 0:00:03]} 26. Ng5 {[%emt 0:00:13]} Rf8 {[%emt 0:04:16]} 27. Ba3 {[%emt 0:00:01]} h6 {[%emt 0:00:07]} 28. Bxf8 {[%emt 0:00:27]} hxg5 {[%emt 0:00:20]} 29. Bd6 {[%emt 0:00:16]} Nf4 {[%emt 0:00:11]} 30. Bxf4 {[%emt 0:00:13]} gxf4 {[%emt 0:00:02]} 31. Rd3 {[%emt 0:00:12]} Be3 {[%emt 0:00:02]} 32. g5 {[%emt 0:00:14]} g6 {[%emt 0:00:29]} 33. Rxe3 {[%emt 0:00:09]} fxe3 {[%emt 0:00:15]} 34. Qe4 {[%emt 0:00:03]} Rd8 {[%emt 0:00:20]} 35. Rf1 {[%emt 0:00:09]} Kg7 {[%emt 0:00:23]} 36. Qe7 {[%emt 0:00:15]} Rh8# 0-1

[Event "RUS-ch Men Rapid 2019"]
[Site "Sochi"]
[Date "2019.10.16"]
[Round "10.6"]
[White "Drygalov, Andrey"]
[Black "Bocharov, Dmitry"]
[Result "0-1"]
[ECO "B47"]
[WhiteElo "2484"]
[BlackElo "2519"]
[Annotator "ChessBase"]
[PlyCount "98"]
[EventDate "2019.10.15"]
[EventType "swiss"]
[EventCountry "RUS"]
[SourceTitle "playchess.com"]
[Source "ChessBase"]
[SourceQuality "1"]
[TimeControl "900+10"]

1. e4 {[%emt 0:00:00]} c5 {[%emt 0:00:00]} 2. Nf3 {[%emt 0:00:00]} e6 3. d4 cxd4 {[%emt 0:00:03]} 4. Nxd4 {[%emt 0:00:00]} Nc6 {[%emt 0:00:01]} 5. Nc3 {[%emt 0:00:00]} Qc7 {[%emt 0:00:03]} 6. g3 {[%emt 0:00:00]} Nf6 {[%emt 0:00:18]} 7. Bg2 {[%emt 0:00:00]} a6 {[%emt 0:00:04]} 8. O-O {[%emt 0:00:01]} Bc5 {[%emt 0:00:39]} 9. Nxc6 {[%emt 0:00:03]} dxc6 {[%emt 0:00:02]} 10. Na4 {[%emt 0:00:07]} Ba7 {[%emt 0:00:03]} 11. c4 {[%emt 0:00:01]} O-O {[%emt 0:00:47]} 12. c5 {[%emt 0:00:37]} e5 {[%emt 0:00:04]} 13. Bg5 {[%emt 0:00:34]} Qe7 {[%emt 0:00:04]} 14. Qc2 {[%emt 0:00:23]} Be6 {[%emt 0:01:59]} 15. f4 {[%emt 0:03:24]} h6 {[%emt 0:00:02]} 16. Bh4 {[%emt 0:00:01]} exf4 {[%emt 0:00:45]} 17. gxf4 {[%emt 0:00:01]} g5 {[%emt 0:00:05]} 18. fxg5 {[%emt 0:00:20]} Nd7 {[%emt 0:00:02]} 19. b4 {[%emt 0:02:26]} hxg5 {[%emt 0:00:07]} 20. Bg3 {[%emt 0:00:05]} Bb8 {[%emt 0:00:04]} 21. Bxb8 Raxb8 {[%emt 0:00:02]} 22. Qc3 {[%emt 0:02:55]} f6 {[%emt 0:00:25]} 23. a3 {[%emt 0:00:01]} Ne5 {[%emt 0:00:10]} 24. Rad1 {[%emt 0:00:19]} Rbd8 {[%emt 0:01:33]} 25. Nb2 {[%emt 0:00:31]} Bg4 {[%emt 0:00:42]} 26. Rde1 {[%emt 0:01:24]} Kg7 {[%emt 0:01:10]} 27. Rf2 {[%emt 0:00:50]} Qd7 {[%emt 0:02:53]} 28. Qg3 {[%emt 0:01:06]} Qd4 {[%emt 0:00:22]} 29. h3 {[%emt 0:00:47]} Bh5 {[%emt 0:00:09]} 30. Re3 {[%emt 0:00:49]} a5 {[%emt 0:00:40]} 31. Rb3 {[%emt 0:01:02]} Bf7 {[%emt 0:00:08]} 32. Re3 {[%emt 0:00:13]} Be6 {[%emt 0:00:16]} 33. bxa5 {[%emt 0:00:19]} Qxc5 {[%emt 0:00:03]} 34. Nd3 {[%emt 0:00:20]} Nxd3 {[%emt 0:00:45]} 35. Rxd3 {[%emt 0:00:01]} Qxa5 {[%emt 0:01:05]} 36. Rdf3 {[%emt 0:00:00]} Qe5 {[%emt 0:00:09]} 37. h4 {[%emt 0:00:42]} Qxg3 {[%emt 0:00:48]} 38. Rxg3 {[%emt 0:00:01]} Rd1+ {[%emt 0:00:02]} 39. Bf1 {[%emt 0:00:02]} Bc4 {[%emt 0:01:17]} 40. hxg5 {[%emt 0:00:16]} fxg5 {[%emt 0:00:18]} 41. Rxg5+ {[%emt 0:01:41]} Kh6 {[%emt 0:00:03]} 42. Rgg2 {[%emt 0:00:20]} Rxf1+ {[%emt 0:00:08]} 43. Rxf1 {[%emt 0:00:01]} Rxf1+ {[%emt 0:00:02]} 44. Kh2 {[%emt 0:00:01]} Re1 {[%emt 0:00:06]} 45. Rg4 {[%emt 0:00:05]} Be6 {[%emt 0:00:06]} 46. Rh4+ {[%emt 0:00:02]} Kg5 {[%emt 0:00:01]} 47. Rh7 {[%emt 0:00:01]} Rxe4 {[%emt 0:00:35]} 48. Rxb7 {[%emt 0:00:02]} Ra4 {[%emt 0:00:10]} 49. Rb6 {[%emt 0:00:14]} Bd5 {[%emt 0:00:06]} 0-1

[Event "RUS-ch Men Rapid 2019"]
[Site "Sochi"]
[Date "2019.10.16"]
[Round "10.8"]
[White "Gaydym, Arseniy"]
[Black "Lysyj, Igor"]
[Result "0-1"]
[ECO "C77"]
[WhiteElo "2139"]
[BlackElo "2596"]
[Annotator "ChessBase"]
[PlyCount "116"]
[EventDate "2019.10.15"]
[EventType "swiss"]
[EventCountry "RUS"]
[SourceTitle "playchess.com"]
[Source "ChessBase"]
[SourceQuality "1"]
[TimeControl "900+10"]

1. e4 {[%emt 0:00:08]} e5 {[%emt 0:00:00]} 2. Nf3 {[%emt 0:00:02]} Nc6 {[%emt 0:00:00]} 3. Bb5 {[%emt 0:00:02]} a6 {[%emt 0:00:00]} 4. Ba4 {[%emt 0:00:11]} Nf6 {[%emt 0:00:01]} 5. d3 {[%emt 0:00:02]} Bc5 {[%emt 0:00:07]} 6. c3 {[%emt 0:00:08]} d6 {[%emt 0:00:16]} 7. O-O {[%emt 0:00:07]} O-O {[%emt 0:00:06]} 8. Re1 {[%emt 0:00:39]} Ba7 {[%emt 0:00:06]} 9. Nbd2 {[%emt 0:00:04]} Ng4 {[%emt 0:00:03]} 10. Rf1 {[%emt 0:01:10]} f5 {[%emt 0:00:02]} 11. h3 {[%emt 0:01:25]} Nf6 {[%emt 0:01:04]} 12. Bb3+ {[%emt 0:00:27]} Kh8 {[%emt 0:00:02]} 13. Re1 {[%emt 0:03:06]} fxe4 {[%emt 0:01:01]} 14. Nxe4 {[%emt 0:01:00]} Nxe4 {[%emt 0:00:04]} 15. dxe4 {[%emt 0:01:08]} Qf6 {[%emt 0:01:03]} 16. Kh2 {[%emt 0:00:25]} h6 {[%emt 0:01:34]} 17. Be3 {[%emt 0:00:25]} Bxe3 {[%emt 0:00:15]} 18. fxe3 {[%emt 0:00:26]} Bd7 {[%emt 0:02:17]} 19. Rf1 {[%emt 0:00:18]} Qe7 {[%emt 0:00:03]} 20. Qe1 {[%emt 0:01:06]} g5 {[%emt 0:00:37]} 21. a3 {[%emt 0:01:36]} Rf6 {[%emt 0:00:22]} 22. Qg3 {[%emt 0:00:36]} Raf8 {[%emt 0:00:19]} 23. Rf2 {[%emt 0:00:59]} Qg7 {[%emt 0:03:05]} 24. Raf1 {[%emt 0:00:42]} Ne7 {[%emt 0:00:13]} 25. Nd2 {[%emt 0:01:48]} Ng6 {[%emt 0:00:18]} 26. Rxf6 {[%emt 0:00:34]} Rxf6 {[%emt 0:00:01]} 27. Rxf6 {[%emt 0:00:02]} Qxf6 {[%emt 0:00:01]} 28. Qf3 {[%emt 0:00:05]} Kg7 {[%emt 0:00:18]} 29. Kg1 {[%emt 0:00:15]} Qxf3 {[%emt 0:01:01]} 30. Nxf3 {[%emt 0:00:02]} g4 {[%emt 0:00:10]} 31. hxg4 {[%emt 0:00:24]} Bxg4 {[%emt 0:00:01]} 32. Kf2 {[%emt 0:00:02]} Kf6 {[%emt 0:00:16]} 33. Kg3 {[%emt 0:00:37]} Bd7 {[%emt 0:00:07]} 34. Bd5 {[%emt 0:00:15]} b6 {[%emt 0:00:08]} 35. Bc4 {[%emt 0:00:03]} a5 {[%emt 0:00:11]} 36. Nh4 {[%emt 0:00:25]} Nf8 {[%emt 0:01:13]} 37. Be2 {[%emt 0:00:05]} Nh7 {[%emt 0:01:22]} 38. Bg4 {[%emt 0:00:15]} Bc6 {[%emt 0:01:09]} 39. Bf3 Ng5 {[%emt 0:00:25]} 40. Nf5 {[%emt 0:00:16]} h5 {[%emt 0:00:23]} 41. Kh4 {[%emt 0:00:17]} Bxe4 {[%emt 0:00:15]} 42. Bxe4 {[%emt 0:00:12]} Nxe4 {[%emt 0:00:02]} 43. Nh6 {[%emt 0:00:02]} Kg6 44. Ng8 Kf7 {[%emt 0:01:40]} 45. Nh6+ {[%emt 0:00:13]} Kg6 {[%emt 0:00:02]} 46. Ng8 {[%emt 0:00:04]} Nd2 {[%emt 0:00:20]} 47. Ne7+ {[%emt 0:00:04]} Kh6 {[%emt 0:00:01]} 48. Nf5+ {[%emt 0:00:05]} Kg6 {[%emt 0:00:02]} 49. Ne7+ {[%emt 0:00:00]} Kf7 {[%emt 0:00:28]} 50. Nd5 {[%emt 0:00:11]} Nc4 {[%emt 0:00:01]} 51. b3 {[%emt 0:00:19]} Nxa3 {[%emt 0:00:03]} 52. Kxh5 {[%emt 0:00:05]} Nc2 {[%emt 0:00:14]} 53. g4 {[%emt 0:00:23]} b5 {[%emt 0:00:32]} 54. Kh6 {[%emt 0:00:18]} c6 {[%emt 0:00:08]} 55. Nb6 {[%emt 0:00:25]} Nxe3 {[%emt 0:00:03]} 56. g5 {[%emt 0:00:02]} Nf5+ {[%emt 0:00:03]} 57. Kh7 {[%emt 0:00:01]} e4 {[%emt 0:00:07]} 58. g6+ {[%emt 0:00:14]} Ke6 {[%emt 0:00:04]} 0-1

[Event "RUS-ch Men Rapid 2019"]
[Site "Sochi"]
[Date "2019.10.16"]
[Round "10.9"]
[White "Sakaev, Konstantin"]
[Black "Glek, Igor"]
[Result "1/2-1/2"]
[ECO "E00"]
[WhiteElo "2595"]
[BlackElo "2467"]
[Annotator "ChessBase"]
[PlyCount "41"]
[EventDate "2019.10.15"]
[EventType "swiss"]
[EventCountry "RUS"]
[SourceTitle "playchess.com"]
[Source "ChessBase"]
[SourceQuality "1"]
[TimeControl "900+10"]

1. d4 {[%emt 0:00:00]} e6 {[%emt 0:00:00]} 2. c4 {[%emt 0:00:00]} Bb4+ {[%emt 0:00:00]} 3. Nd2 {[%emt 0:00:08]} d5 {[%emt 0:00:15]} 4. Ngf3 {[%emt 0:00:30]} Nf6 {[%emt 0:00:14]} 5. Qa4+ {[%emt 0:00:22]} Nc6 {[%emt 0:00:02]} 6. a3 {[%emt 0:00:01]} Bxd2+ {[%emt 0:01:40]} 7. Bxd2 {[%emt 0:00:02]} Ne4 {[%emt 0:00:01]} 8. Rd1 {[%emt 0:00:40]} O-O {[%emt 0:00:08]} 9. g3 {[%emt 0:00:52]} Nd6 {[%emt 0:02:56]} 10. c5 {[%emt 0:00:37]} Ne4 {[%emt 0:00:08]} 11. Bg2 {[%emt 0:00:56]} Bd7 {[%emt 0:00:38]} 12. Qc2 {[%emt 0:00:56]} a5 {[%emt 0:00:04]} 13. O-O {[%emt 0:00:37]} a4 {[%emt 0:00:03]} 14. Bf4 {[%emt 0:01:19]} f5 {[%emt 0:02:54]} 15. Ne1 {[%emt 0:02:59]} Be8 {[%emt 0:00:54]} 16. f3 {[%emt 0:00:05]} Nf6 {[%emt 0:00:38]} 17. Qc3 {[%emt 0:00:24]} h6 {[%emt 0:02:05]} 18. Nd3 {[%emt 0:00:04]} g5 {[%emt 0:00:05]} 19. Bc1 {[%emt 0:00:56]} Qe7 {[%emt 0:00:03]} 20. Kf2 {[%emt 0:01:20]} Qg7 {[%emt 0:00:43]} 21. Kg1 1/2-1/2